fUSD/lending_fUSD_20250629
["ID","MTS","AMOUNT","RATE_DAILY","PERIOD"]
[368566631,1751211074918,-523.98,0.00022465,2]
[368566632,1751211074928,-490.0,0.00022465,2]
[368566633,1751211074937,-2725.21,0.00022465,2]
[368566634,1751211074946,-490.0,0.00022465,2]
[368566635,1751211074956,-490.0,0.00022465,2]
[368566636,1751211074967,-151.893054,0.00022465,7]
[368566637,1751211074976,-490.0,0.00022465,2]
[368566638,1751211074985,-490.0,0.00022465,2]
[368566639,1751211074996,-490.0,0.00022465,2]
[368566640,1751211075006,-1500.0,0.00022465,2]
[368566641,1751211075015,-490.0,0.00022465,2]
[368566642,1751211075025,-490.0,0.00022465,2]
[368566643,1751211075034,-490.0,0.00022465,2]
[368566644,1751211075043,-680.71,0.00022465,2]
[368566645,1751211075061,-490.0,0.00022465,2]
[368566646,1751211075070,-490.0,0.00022465,2]
[368566647,1751211075080,-490.0,0.00022465,2]
[368566648,1751211075092,-2178.0,0.00022465,2]
[368566649,1751211075101,-2531.77,0.00022465,2]
[368566650,1751211075111,-2067.9,0.00022465,2]
[368566651,1751211075124,-895.17,0.00022465,2]
[368566652,1751211075134,-1344.1,0.00022465,2]
[368566653,1751211075143,-580.52,0.00022465,2]
[368566654,1751211075153,-490.0,0.00022465,2]
[368566655,1751211075162,-1324.87,0.00022465,2]
[368566656,1751211075178,-2044.79,0.00022465,2]
[368566657,1751211075188,-1916.1,0.00022465,2]
[368566658,1751211075199,-525.68,0.00022465,2]
[368566659,1751211075208,-490.0,0.00022465,2]
[368566660,1751211075218,-490.0,0.00022465,2]
[368566661,1751211075227,-490.0,0.00022465,2]
[368566662,1751211075236,-490.0,0.00022465,2]
[368566663,1751211075246,-490.0,0.00022465,2]
[368566664,1751211075255,-490.0,0.00022465,2]
[368566665,1751211075264,-490.0,0.00022465,2]
[368566666,1751211075273,-490.0,0.00022465,2]
[368566667,1751211075282,-3513.89,0.00022465,2]
[368566668,1751211075291,-4039.032625,0.00022465,2]
[368566669,1751211075301,-490.0,0.00022465,2]
[368566670,1751211075310,-537.22,0.00022465,2]
[368566671,1751211075320,-490.0,0.00022465,2]
[368566672,1751211075329,-1085.78,0.00022465,2]
[368566673,1751211075338,-917.88,0.00022465,2]
[368566674,1751211075348,-1153.76,0.00022465,2]
[368566675,1751211075357,-630.7,0.00022465,2]
[368566676,1751211075366,-490.0,0.00022465,2]
[368566677,1751211075375,-490.0,0.00022465,2]
[368566678,1751211075385,-490.0,0.00022465,2]
[368566679,1751211075394,-681.35,0.00022465,2]
[368566680,1751211075404,-490.0,0.00022465,2]
[368566681,1751211075413,-539.19,0.00022465,2]
[368566682,1751211075422,-490.0,0.00022465,2]
[368566683,1751211075432,-3168.37,0.00022465,2]
[368566684,1751211075442,-490.0,0.00022465,2]
[368566685,1751211075451,-1966.49,0.00022465,2]
[368566686,1751211075461,-490.0,0.00022465,2]
[368566687,1751211075470,-2196.99,0.00022465,2]
[368566688,1751211075480,-219.357334,0.00022465,7]
[368566689,1751211075489,-490.0,0.00022465,2]
[368566690,1751211075498,-490.0,0.00022465,2]
[368566691,1751211075508,-219.357334,0.00022465,7]
[368566692,1751211075517,-490.0,0.00022465,2]
[368566693,1751211075528,-1015.26,0.00022465,2]
[368566694,1751211075538,-1757.0,0.00022465,2]
[368566695,1751211075548,-1166.39,0.00022465,2]
[368566696,1751211075557,-568.45,0.00022465,2]
[368566697,1751211075567,-490.0,0.00022465,2]
[368566698,1751211075576,-1317.46,0.00022465,2]
[368566699,1751211075585,-2289.06,0.00022465,2]
[368566700,1751211075595,-490.0,0.00022465,2]
[368566701,1751211075604,-490.0,0.00022465,2]
[368566702,1751211075614,-490.0,0.00022465,2]
[368566703,1751211075623,-1946.74,0.00022465,2]
[368566704,1751211075633,-490.0,0.00022465,2]
[368566705,1751211075642,-490.0,0.00022465,2]
[368566706,1751211075652,-496.95949357,0.00022465,2]
[368566707,1751211075661,-595.89,0.00022465,2]
[368566708,1751211075670,-1348.19244475,0.00022465,2]
[368566709,1751211077261,-280.593,0.00018603,2]
[368566710,1751211078302,-272.66652909,0.00013598,2]
[368566711,1751211078311,-3369.24898293,0.00018603,2]
[368566712,1751211078321,-3372.91,0.00021917,2]
[368566713,1751211078330,-897.14,0.00021917,2]
[368566714,1751211078339,-504.54,0.00021917,2]
[368566715,1751211078349,-490.0,0.00021917,2]
[368566716,1751211078359,-490.0,0.00021917,2]
[368566717,1751211078371,-515.087877,0.00021917,2]
[368566718,1751211078381,-2856.07,0.00021917,2]
[368566719,1751211078390,-490.0,0.00021917,2]
[368566720,1751211078399,-490.0,0.00021917,2]
[368566721,1751211078409,-663.10048847,0.00022091,2]
[368566722,1751211079696,-719.26365,0.00019543,2]
[368566723,1751211079708,-2930.57833293,0.00019543,2]
[368566724,1751211079718,-713.0,0.00021917,2]
[368566725,1751211079727,-590.69,0.00021917,2]
[368566726,1751211079736,-490.0,0.00021917,2]
[368566727,1751211079745,-490.0,0.00021917,2]
[368566728,1751211079758,-504.13,0.00021917,2]
[368566729,1751211079767,-490.0,0.00021917,2]
[368566730,1751211079776,-490.0,0.00021917,2]
[368566731,1751211079786,-490.0,0.00021917,2]
[368566732,1751211079795,-151.0,0.00021917,2]
[368566733,1751211079804,-29.53886647,0.00022091,2]
[368566734,1751211079813,-3372.91,0.00022191,2]
[368566735,1751211079822,-897.14,0.00022191,2]
[368566736,1751211079832,-490.0,0.00022191,2]
[368566737,1751211079841,-515.087877,0.00022191,2]
[368566738,1751211079852,-122.77621317,0.00022191,2]
[368566739,1751211079869,-2733.29378683,0.00022191,2]
[368566740,1751211079879,-305.77,0.00022191,2]
[368566741,1751211079890,-713.0,0.00022191,2]
[368566742,1751211079900,-490.0,0.00022191,2]
[368566743,1751211079909,-490.0,0.00022191,2]
[368566744,1751211079919,-584.57,0.00022191,2]
[368566745,1751211079928,-490.0,0.00022191,2]
[368566746,1751211079937,-155.85755525,0.00022465,2]
[368566747,1751211079947,-1555.86,0.00022465,2]
[368566748,1751211079956,-2078.98,0.00022465,2]
[368566749,1751211079965,-2915.39,0.00022465,2]
[368566750,1751211079974,-581.78,0.00022465,2]
[368566751,1751211079983,-1038.47,0.00022465,2]
[368566752,1751211079992,-691.61,0.00022465,2]
[368566753,1751211080001,-1036.28,0.00022465,2]
[368566754,1751211080010,-1127.18,0.00022465,2]
[368566755,1751211080020,-2622.05,0.00022465,2]
[368566756,1751211080029,-490.0,0.00022465,2]
[368566757,1751211080039,-1009.82,0.00022465,2]
[368566758,1751211080048,-898.96,0.00022465,2]
[368566759,1751211080058,-490.0,0.00022465,2]
[368566760,1751211080067,-490.0,0.00022465,2]
[368566761,1751211080076,-1160.55,0.00022465,2]
[368566762,1751211080085,-490.0,0.00022465,2]
[368566763,1751211080095,-567.9,0.00022465,2]
[368566764,1751211080104,-490.0,0.00022465,2]
[368566765,1751211080113,-490.0,0.00022465,2]
[368566766,1751211080122,-111.65094375,0.00022465,2]
[368566767,1751211080135,-770.95840931,0.00022465,2]
[368566768,1751211080198,-413.4,0.00022465,2]
[368566769,1751211080263,-478.54064694,0.00022465,2]
[368566770,1751211080274,-2047.11,0.00022465,2]
[368566771,1751211080282,-658.14935306,0.00022465,2]
[368566775,1751211358122,-427.5,0.00013699,2]
[368566776,1751211358169,-1000.0,0.00016689,3]
[368566777,1751211358215,-160.56,0.00016957,2]
[368566778,1751211358261,-250.0,0.00018958,2]
[368566779,1751211358307,-427.5,0.00020187,2]
[368566780,1751211358355,-527.0,0.00020776,9]
[368566781,1751211358401,-433.0,0.00020776,9]
[368566782,1751211358445,-26314.08559737,0.00021,2]
[368566783,1751211358490,-165.87,0.0002141,2]
[368566784,1751211358536,-930.94411376,0.00021817,2]
[368566785,1751211358582,-596.45796275,0.00021817,2]
[368566786,1751211358630,-170.18229136,0.00021817,2]
[368566787,1751211358678,-153.89841368,0.00021817,2]
[368566788,1751211358725,-2000.0,0.000219,2]
[368566789,1751211359864,-1256.776,0.000219,2]
[368566790,1751211359909,-168.463,0.000219,2]
[368566791,1751211359950,-500.0,0.00021916,2]
[368566792,1751211359991,-500.0,0.00021916,2]
[368566793,1751211360033,-500.0,0.00021916,2]
[368566794,1751211360076,-277.65140775,0.00021916,2]
[368566795,1751211360118,-500.0,0.00021916,2]
[368566796,1751211360158,-500.0,0.00021916,2]
[368566797,1751211360199,-500.0,0.00021916,2]
[368566798,1751211360242,-500.0,0.00021916,2]
[368566799,1751211360283,-500.0,0.00021916,2]
[368566800,1751211360323,-500.0,0.00021916,2]
[368566801,1751211360363,-500.0,0.00021916,2]
[368566802,1751211360404,-500.0,0.00021916,2]
[368566803,1751211360444,-500.0,0.00021916,2]
[368566804,1751211360484,-500.0,0.00021916,2]
[368566805,1751211360524,-500.0,0.00021916,2]
[368566806,1751211360564,-500.0,0.00021916,2]
[368566807,1751211360605,-500.0,0.00021916,2]
[368566808,1751211360645,-500.0,0.00021916,2]
[368566809,1751211360682,-304.39,0.00021917,2]
[368566810,1751211360721,-300.57,0.00021917,2]
[368566811,1751211360759,-490.0,0.00021917,2]
[368566812,1751211360796,-490.0,0.00021917,2]
[368566813,1751211360835,-490.0,0.00021917,2]
[368566814,1751211360874,-490.0,0.00021917,2]
[368566815,1751211360912,-516.68,0.00021917,2]
[368566816,1751211360950,-8887.49,0.00021917,2]
[368566817,1751211360988,-490.0,0.00021917,2]
[368566818,1751211361026,-490.0,0.00021917,2]
[368566819,1751211361064,-490.0,0.00021917,2]
[368566820,1751211361101,-490.0,0.00021917,2]
[368566821,1751211361139,-490.0,0.00021917,2]
[368566822,1751211361177,-490.0,0.00021917,2]
[368566823,1751211361216,-490.0,0.00021917,2]
[368566824,1751211361253,-632.74,0.00021917,2]
[368566825,1751211361293,-1500.0,0.00021917,2]
[368566826,1751211361331,-490.0,0.00021917,2]
[368566827,1751211361369,-490.0,0.00021917,2]
[368566828,1751211361407,-490.0,0.00021917,2]
[368566829,1751211361444,-490.0,0.00021917,2]
[368566830,1751211361728,-490.0,0.00021917,2]
[368566831,1751211361767,-490.0,0.00021917,2]
[368566832,1751211361806,-490.0,0.00021917,2]
[368566833,1751211361847,-490.0,0.00021917,2]
[368566834,1751211361884,-490.0,0.00021917,2]
[368566835,1751211361924,-490.0,0.00021917,2]
[368566836,1751211361961,-490.0,0.00021917,2]
[368566837,1751211362000,-490.0,0.00021917,2]
[368566838,1751211362037,-480.02277193,0.00021917,2]
[368566839,1751211362075,-490.0,0.00021917,2]
[368566840,1751211362113,-531.66,0.00021917,2]
[368566841,1751211362150,-490.0,0.00021917,2]
[368566842,1751211362188,-490.0,0.00021917,2]
[368566843,1751211362226,-490.0,0.00021917,2]
[368566844,1751211362264,-490.0,0.00021917,2]
[368566845,1751211362303,-709.19,0.00021917,2]
[368566846,1751211362341,-490.0,0.00021917,2]
[368566847,1751211362379,-490.0,0.00021917,2]
[368566848,1751211362417,-337.00066572,0.00021917,2]
[368566849,1751211362456,-490.0,0.00021917,2]
[368566850,1751211362495,-217.13348563,0.00021917,2]
[368566851,1751211362535,-833.2,0.00021917,2]
[368566852,1751211362575,-1442.08,0.00021917,2]
[368566853,1751211362615,-937.72,0.00021917,2]
[368566854,1751211362655,-490.0,0.00021917,2]
[368566855,1751211362694,-500.0,0.00021917,2]
[368566856,1751211362733,-851.42,0.00021917,2]
[368566857,1751211362773,-490.0,0.00021917,2]
[368566858,1751211362813,-490.0,0.00021917,2]
[368566859,1751211362857,-490.0,0.00021917,2]
[368566860,1751211362895,-490.0,0.00021917,2]
[368566861,1751211362935,-490.0,0.00021917,2]
[368566862,1751211362977,-490.0,0.00021917,2]
[368566863,1751211363017,-490.0,0.00021917,2]
[368566864,1751211363059,-220.0,0.00021917,2]
[368566865,1751211363100,-500.0,0.00021917,2]
[368566866,1751211363143,-494.95,0.00021917,2]
[368566867,1751211363183,-490.0,0.00021917,2]
[368566868,1751211363224,-549.1,0.00021917,2]
[368566869,1751211363264,-490.0,0.00021917,2]
[368566870,1751211363306,-490.0,0.00021917,2]
[368566871,1751211363348,-813.15,0.00021917,2]
[368566872,1751211363390,-490.0,0.00021917,2]
[368566873,1751211363709,-490.0,0.00021917,2]
[368566874,1751211363751,-490.0,0.00021917,2]
[368566875,1751211363792,-500.0,0.00021917,2]
[368566876,1751211363841,-490.0,0.00021917,2]
[368566877,1751211363883,-490.0,0.00021917,2]
[368566878,1751211363925,-490.0,0.00021917,2]
[368566879,1751211363966,-500.0,0.00021917,2]
[368566880,1751211364008,-490.0,0.00021917,2]
[368566881,1751211364048,-500.0,0.00021917,2]
[368566882,1751211364090,-500.0,0.00021917,2]
[368566883,1751211364130,-500.0,0.00021917,2]
[368566884,1751211364170,-500.0,0.00021917,2]
[368566885,1751211364210,-500.0,0.00021917,2]
[368566886,1751211364252,-631.14,0.00021917,2]
[368566887,1751211364292,-490.0,0.00021917,2]
[368566888,1751211364336,-490.0,0.00021917,2]
[368566889,1751211364377,-490.0,0.00021917,2]
[368566890,1751211364417,-490.0,0.00021917,2]
[368566891,1751211364459,-490.0,0.00021917,2]
[368566892,1751211364500,-490.0,0.00021917,2]
[368566893,1751211364543,-490.0,0.00021917,2]
[368566894,1751211364584,-630.4,0.00021917,2]
[368566895,1751211364627,-490.0,0.00021917,2]
[368566896,1751211364669,-1242.07,0.00021917,2]
[368566897,1751211364712,-1215.78,0.00021917,2]
[368566898,1751211364754,-490.0,0.00021917,2]
[368566899,1751211364796,-490.0,0.00021917,2]
[368566900,1751211364837,-490.000001,0.00021917,2]
[368566901,1751211364878,-490.0,0.00021917,2]
[368566902,1751211364923,-490.0,0.00021917,2]
[368566903,1751211364965,-490.0,0.00021917,2]
[368566904,1751211365006,-2196.47,0.00021917,2]
[368566905,1751211365048,-490.0,0.00021917,2]
[368566906,1751211365089,-490.0,0.00021917,2]
[368566907,1751211365130,-490.0,0.00021917,2]
[368566908,1751211365170,-900.71,0.00021917,2]
[368566909,1751211365210,-490.0,0.00021917,2]
[368566910,1751211365251,-490.0,0.00021917,2]
[368566911,1751211365293,-490.0,0.00021917,2]
[368566912,1751211365334,-490.0,0.00021917,2]
[368566913,1751211365374,-490.0,0.00021917,2]
[368566914,1751211365417,-490.0,0.00021917,2]
[368566915,1751211365674,-490.0,0.00021917,2]
[368566916,1751211365723,-490.0,0.00021917,2]
[368566917,1751211365765,-490.0,0.00021917,2]
[368566918,1751211365806,-490.0,0.00021917,2]
[368566919,1751211365849,-490.0,0.00021917,2]
[368566920,1751211365889,-490.0,0.00021917,2]
[368566921,1751211365929,-490.0,0.00021917,2]
[368566922,1751211365969,-490.0,0.00021917,2]
[368566923,1751211366009,-490.0,0.00021917,2]
[368566924,1751211366051,-490.0,0.00021917,2]
[368566925,1751211366092,-490.0,0.00021917,2]
[368566926,1751211366131,-490.0,0.00021917,2]
[368566927,1751211366170,-490.0,0.00021917,2]
[368566928,1751211366210,-490.0,0.00021917,2]
[368566929,1751211366250,-490.0,0.00021917,2]
[368566930,1751211366290,-490.0,0.00021917,2]
[368566931,1751211366330,-490.0,0.00021917,2]
[368566932,1751211366369,-490.0,0.00021917,2]
[368566933,1751211366410,-490.0,0.00021917,2]
[368566934,1751211366450,-940.83,0.00021917,2]
[368566935,1751211366489,-490.0,0.00021917,2]
[368566936,1751211366535,-490.0,0.00021917,2]
[368566937,1751211366574,-490.0,0.00021917,2]
[368566938,1751211366614,-490.0,0.00021917,2]
[368566939,1751211366654,-976.3,0.00021917,2]
[368566940,1751211366692,-650.43,0.00021917,2]
[368566941,1751211366732,-490.0,0.00021917,2]
[368566942,1751211366771,-490.0,0.00021917,2]
[368566943,1751211366811,-788.2,0.00021917,2]
[368566944,1751211366851,-842.16,0.00021917,2]
[368566945,1751211366891,-2158.96,0.00021917,2]
[368566946,1751211366933,-932.44,0.00021917,2]
[368566947,1751211366974,-2616.4,0.00021917,2]
[368566948,1751211367016,-490.0,0.00021917,2]
[368566949,1751211367057,-490.0,0.00021917,2]
[368566950,1751211367095,-490.0,0.00021917,2]
[368566951,1751211367134,-490.0,0.00021917,2]
[368566952,1751211367174,-490.0,0.00021917,2]
[368566953,1751211367213,-2516.06,0.00021917,2]
[368566954,1751211367252,-1286.86,0.00021917,2]
[368566955,1751211367292,-490.0,0.00021917,2]
[368566956,1751211367330,-490.0,0.00021917,2]
[368566957,1751211367369,-490.0,0.00021917,2]
[368566958,1751211367623,-1958.08,0.00021917,2]
[368566959,1751211367664,-490.0,0.00021917,2]
[368566960,1751211367704,-490.0,0.00021917,2]
[368566961,1751211367744,-490.0,0.00021917,2]
[368566962,1751211367784,-2210.14,0.00021917,2]
[368566963,1751211367822,-1414.92,0.00021917,2]
[368566964,1751211367866,-3167.5,0.00021917,2]
[368566965,1751211367905,-4648.87,0.00021917,2]
[368566966,1751211367944,-490.0,0.00021917,2]
[368566967,1751211367984,-490.0,0.00021917,2]
[368566968,1751211368024,-1457.66,0.00021917,2]
[368566969,1751211368064,-490.0,0.00021917,2]
[368566970,1751211368104,-558.24,0.00021917,2]
[368566971,1751211368142,-490.0,0.00021917,2]
[368566972,1751211368183,-490.0,0.00021917,2]
[368566973,1751211368222,-490.0,0.00021917,2]
[368566974,1751211368262,-490.0,0.00021917,2]
[368566975,1751211368302,-490.0,0.00021917,2]
[368566976,1751211368341,-477.36925213,0.00021917,2]
[368566977,1751211368380,-490.0,0.00021917,2]
[368566978,1751211368419,-490.0,0.00021917,2]
[368566979,1751211368458,-1089.14,0.00021917,2]
[368566980,1751211368498,-782.24,0.00021917,2]
[368566981,1751211368538,-2682.24,0.00021917,2]
[368566982,1751211368579,-490.0,0.00021917,2]
[368566983,1751211368619,-1025.16,0.00021917,2]
[368566984,1751211368660,-2023.85,0.00021917,2]
[368566985,1751211368701,-2204.98,0.00021917,2]
[368566986,1751211368741,-490.0,0.00021917,2]
[368566987,1751211368794,-490.0,0.00021917,2]
[368566988,1751211368839,-1058.54,0.00021917,2]
[368566989,1751211368881,-490.0,0.00021917,2]
[368566990,1751211368924,-1407.4,0.00021917,2]
[368566991,1751211368966,-490.0,0.00021917,2]
[368566992,1751211369008,-490.0,0.00021917,2]
[368566993,1751211369051,-490.0,0.00021917,2]
[368566994,1751211369091,-490.0,0.00021917,2]
[368566995,1751211369134,-1918.79,0.00021917,2]
[368566996,1751211369176,-2375.14,0.00021917,2]
[368566997,1751211369219,-2335.02,0.00021917,2]
[368566998,1751211369262,-2278.68,0.00021917,2]
[368566999,1751211369312,-490.0,0.00021917,2]
[368567000,1751211369656,-3078.22,0.00021917,2]
[368567001,1751211369700,-490.0,0.00021917,2]
[368567002,1751211369740,-490.0,0.00021917,2]
[368567003,1751211369781,-1172.3,0.00021917,2]
[368567004,1751211369825,-1760.68,0.00021917,2]
[368567005,1751211369872,-556.3,0.00021917,2]
[368567006,1751211369913,-2192.51,0.00021917,2]
[368567007,1751211369954,-546.77328978,0.00021917,2]
[368567008,1751211369994,-1018.73,0.00021917,2]
[368567009,1751211370037,-490.0,0.00021917,2]
[368567010,1751211370078,-1687.57,0.00021917,2]
[368567011,1751211370118,-528.76,0.00021917,2]
[368567012,1751211370162,-490.0,0.00021917,2]
[368567013,1751211370203,-1652.84,0.00021917,2]
[368567014,1751211370244,-2364.3,0.00021917,2]
[368567015,1751211370284,-490.0,0.00021917,2]
[368567016,1751211370325,-2472.8,0.00021917,2]
[368567017,1751211370366,-3091.83,0.00021917,2]
[368567018,1751211370407,-578.7,0.00021917,2]
[368567019,1751211370447,-3042.18,0.00021917,2]
[368567020,1751211370488,-2864.99,0.00021917,2]
[368567021,1751211370531,-490.0,0.00021917,2]
[368567022,1751211370574,-4791.61,0.00021917,2]
[368567023,1751211370615,-490.0,0.00021917,2]
[368567024,1751211370656,-490.0,0.00021917,2]
[368567025,1751211370698,-490.0,0.00021917,2]
[368567026,1751211370740,-2549.73,0.00021917,2]
[368567027,1751211370793,-490.0,0.00021917,2]
[368567028,1751211370840,-1469.09,0.00021917,2]
[368567029,1751211370883,-490.0,0.00021917,2]
[368567030,1751211370928,-490.0,0.00021917,2]
[368567031,1751211370971,-490.0,0.00021917,2]
[368567032,1751211371017,-490.0,0.00021917,2]
[368567033,1751211371062,-490.0,0.00021917,2]
[368567034,1751211371106,-490.0,0.00021917,2]
[368567035,1751211371150,-490.0,0.00021917,2]
[368567036,1751211371191,-490.0,0.00021917,2]
[368567037,1751211371234,-151.0,0.00021917,2]
[368567038,1751211371282,-1179.68,0.00021917,2]
[368567039,1751211371327,-8867.17,0.00021917,2]
[368567040,1751211371370,-968.35,0.00021917,2]
[368567041,1751211371413,-152.88837,0.00021917,2]
[368567042,1751211371457,-2792.21,0.00021917,2]
[368567043,1751211371812,-490.0,0.00021917,2]
[368567044,1751211371855,-654.03,0.00021917,2]
[368567045,1751211372104,-490.0,0.00021917,2]
[368567046,1751211372149,-999.17,0.00021917,2]
[368567047,1751211372190,-556.66,0.00021917,2]
[368567048,1751211372230,-490.0,0.00021917,2]
[368567049,1751211372270,-490.0,0.00021917,2]
[368567050,1751211372309,-490.0,0.00021917,2]
[368567051,1751211372350,-3873.88,0.00021917,2]
[368567052,1751211372390,-2655.19,0.00021917,2]
[368567053,1751211372428,-490.0,0.00021917,2]
[368567054,1751211372470,-20501.37,0.00021917,2]
[368567055,1751211372509,-560.73,0.00021917,2]
[368567056,1751211372550,-490.0,0.00021917,2]
[368567057,1751211372591,-2837.79,0.00021917,2]
[368567058,1751211372631,-502.62755778,0.00021917,2]
[368567059,1751211372672,-1684.08,0.00021917,2]
[368567060,1751211372712,-494.1,0.00021917,2]
[368567061,1751211372753,-490.0,0.00021917,2]
[368567062,1751211372807,-531.59,0.00021917,2]
[368567063,1751211372851,-490.0,0.00021917,2]
[368567064,1751211372894,-151.0,0.00021917,2]
[368567065,1751211372937,-1162.31,0.00021917,2]
[368567066,1751211372981,-12051.72,0.00021917,2]
[368567067,1751211373023,-151.0,0.00021917,2]
[368567068,1751211373065,-490.0,0.00021917,2]
[368567069,1751211373106,-906.75,0.00021917,2]
[368567070,1751211373147,-2540.86,0.00021917,2]
[368567071,1751211373189,-703.36,0.00021917,2]
[368567072,1751211373230,-247.529696,0.00021917,2]
[368567073,1751211373272,-1218.85,0.00021917,2]
[368567074,1751211373313,-490.0,0.00021917,2]
[368567075,1751211373355,-490.0,0.00021917,2]
[368567076,1751211373395,-9512.46,0.00021917,2]
[368567077,1751211373435,-490.0,0.00021917,2]
[368567078,1751211373475,-490.0,0.00021917,2]
[368567079,1751211373517,-607.74900077,0.00021917,2]
[368567080,1751211374420,-427.5,0.00021917,2]
[368567081,1751211374447,-435.68171857,0.00021917,2]
[368567082,1751211374473,-160.56,0.00021917,2]
[368567083,1751211374534,-250.0,0.00021917,2]
[368567084,1751211374553,-427.5,0.00021917,2]
[368567085,1751211374573,-435.68171857,0.00021917,2]
[368567086,1751211374596,-342.80756209,0.00021917,2]
[368567087,1751211374610,-90.19243791,0.00021917,2]
[368567088,1751211374626,-435.68171857,0.00021917,2]
[368567089,1751211374652,-165.87,0.00021917,2]
[368567090,1751211374673,-435.68171857,0.00021917,2]
[368567091,1751211374698,-435.68171857,0.00021917,2]
[368567092,1751211374718,-170.18229136,0.00021917,2]
[368567093,1751211374737,-153.89841368,0.00021917,2]
[368567094,1751211374761,-435.68171857,0.00021917,2]
[368567095,1751211374784,-435.68171857,0.00021917,2]
[368567096,1751211375026,-168.463,0.00021917,2]
[368567097,1751211375051,-435.68171857,0.00021917,2]
[368567098,1751211375070,-435.68171857,0.00021917,2]
[368567099,1751211375086,-435.68171857,0.00021917,2]
[368567100,1751211375102,-277.65140775,0.00021917,2]
[368567101,1751211375121,-435.68171857,0.00021917,2]
[368567102,1751211375146,-11.91698217,0.00021917,2]
[368567103,1751211375155,-423.7647364,0.00021917,2]
[368567104,1751211375175,-66.2352636,0.00021917,2]
[368567105,1751211375184,-369.44645497,0.00021917,2]
[368567106,1751211375200,-120.55354503,0.00021917,2]
[368567107,1751211375210,-315.12817354,0.00021917,2]
[368567108,1751211375222,-174.87182646,0.00021917,2]
[368567109,1751211375231,-260.80989211,0.00021917,2]
[368567110,1751211375243,-229.19010789,0.00021917,2]
[368567111,1751211375253,-206.49161068,0.00021917,2]
[368567112,1751211375277,-435.68171857,0.00021917,2]
[368567113,1751211375307,-435.68171857,0.00021917,2]
[368567114,1751211375377,-435.68171857,0.00021917,2]
[368567115,1751211375410,-435.68171857,0.00021917,2]
[368567116,1751211375421,-350.67151504,0.00021917,2]
[368567117,1751211375430,-85.01020353,0.00021917,2]
[368567118,1751211375442,-404.98979647,0.00021917,2]
[368567119,1751211375452,-30.6919221,0.00021917,2]
[368567120,1751211375480,-435.68171857,0.00021917,2]
[368567121,1751211375503,-435.68171857,0.00021917,2]
[368567122,1751211375519,-304.39,0.00021917,2]
[368567123,1751211375534,-300.57,0.00021917,2]
[368567124,1751211375546,-435.68171857,0.00021917,2]
[368567125,1751211375558,-435.68171857,0.00021917,2]
[368567126,1751211375575,-435.68171857,0.00021917,2]
[368567127,1751211375603,-435.68171857,0.00021917,2]
[368567128,1751211375631,-435.68171857,0.00021917,2]
[368567129,1751211375647,-342.40604791,0.00021917,2]
[368567130,1751211375656,-93.27567066,0.00021917,2]
[368567131,1751211375675,-396.72432934,0.00021917,2]
[368567132,1751211375685,-38.95738923,0.00021917,2]
[368567133,1751211375696,-435.68171857,0.00021917,2]